Workbook

Sheet 目录
A1: 附件1
A2: 2025年度鲤城区预算收支表
A4: 1. | B4: 2025年度一般公共预算收入预算表
A5: 2. | B5: 2025年度一般公共预算支出预算表
A6: 3. | B6: 2025年度本级一般公共预算收入预算表
A7: 4. | B7: 2025年度本级一般公共预算支出预算表
A8: 5. | B8: 2025年度本级一般公共预算支出预算功能分类明细表
A9: 6. | B9: 2025年度本级一般公共预算支出经济分类情况表
A10: 7. | B10: 2025年度本级一般公共预算基本支出经济分类情况表
A11: 8. | B11: 2025年度一般公共预算转移支付预算表（分项目）
A12: 9. | B12: 2025年度一般公共预算转移支付预算表（分地区）
A13: 10. | B13: 2025年度本级一般公共预算“三公”经费支出预算表
A14: 11. | B14: 2025年度政府性基金预算收入预算表
A15: 12. | B15: 2025年度政府性基金预算支出预算表
A16: 13. | B16: 2025年度本级政府性基金预算收入预算表
A17: 14. | B17: 2025年度本级政府性基金预算支出预算表
A18: 15. | B18: 2025年度政府性基金预算转移支付预算表
A19: 16. | B19: 2025年度国有资本经营预算收入预算表
A20: 17. | B20: 2025年度国有资本经营预算支出预算表
A21: 18. | B21: 2025年度本级国有资本经营预算收入预算表
A22: 19. | B22: 2025年度本级国有资本经营预算支出预算表
A23: 20. | B23: 2025年度国有资本经营预算转移支付预算表
A24: 21. | B24: 2025年度社会保险基金预算收入预算表
A25: 22. | B25: 2025年度社会保险基金预算支出预算表
A26: 23. | B26: 2025年度本级社会保险基金预算收入预算表
A27: 24. | B27: 2025年度本级社会保险基金预算支出预算表
A28: 25. | B28: 2024年度地方政府债务限额及余额情况表
A29: 26. | B29: 2024年度地方政府一般债务限额及余额情况表
A30: 27. | B30: 2024年度地方政府专项债务限额及余额情况表
A31: 28. | B31: 2024年度地方政府债券发行及还本付息情况表

Sheet 附表1-1
A1: 附表1-1
A2: 2025年度一般公共预算收入预算表
D3: 单位：万元
A4: 项目 | B4: 当年预算数 | C4: 上年预算数 | D4: 当年预算数为上年预算数的％
A5: 一、税收收入 | B5: =SUM(B6:B22) -> 126,970 | C5: 116,590 | D5: =IF(C5<>0,ROUND(B5/C5*100,1)," ") -> 108.9
A6: 增值税 | B6: 47,320 | C6: 50,880 | D6: =IF(C6<>0,ROUND(B6/C6*100,1)," ") -> 93
A7: 消费税
A8: 企业所得税 | B8: 15,620 | C8: 21,340 | D8: 73.2
A9: 企业所得税退税
A10: 个人所得税 | B10: 5,020 | C10: 4,240 | D10: 118.4
A11: 资源税 | B11: 5
A12: 城市维护建设税 | B12: 10,560 | C12: 9,030 | D12: 116.9
A13: 房产税 | B13: 11,385 | C13: 7,730 | D13: 147.3
A14: 印花税 | B14: 4,950 | C14: 2,920 | D14: 169.5
A15: 城镇土地使用税 | B15: 4,565 | C15: 3,930 | D15: 116.2
A16: 土地增值税 | B16: 19,675 | C16: 11,300 | D16: 174.1
A17: 车船税 | B17: 6,715 | C17: 5,100 | D17: 131.7
A18: 耕地占用税 | B18: 100
A19: 契税 | B19: 1,000 | C19: 60
A20: 烟叶税
A21: 环境保护税 | B21: 50 | C21: 60 | D21: 83.3
A22: 其他税收收入 | B22: 5
A23: 二、非税收入 | B23: =SUM(B24:B31) -> 40,220 | C23: 45,760 | D23: 87.9
A24: 专项收入 | B24: 3,120 | C24: 4,320 | D24: 72.2
A25: 行政事业性收费收入 | B25: 1,590 | C25: 1,880 | D25: 84.6
A26: 罚没收入 | B26: 590 | C26: 360 | D26: 163.9
A27: 国有资本经营收入
A28: 国有资源（资产）有偿使用收入 | B28: 34,920 | C28: 39,000 | D28: 89.5
A29: 捐赠收入 | C29: 200 | D29: 0
A30: 政府住房基金收入
A31: 其他收入
A32: 收入小计 | B32: =B23+B5 -> 167,190 | C32: 162,350 | D32: 103
A33: 三、债务收入
A34: 四、转移性收入 | B34: =B35+B41+B42+B43 -> 194,724 | C34: 201,063 | D34: 96.8
A35: 上级补助收入 | B35: =B36+B37 -> 37,824 | C35: 39,485 | D35: 95.8
A36: 返还性收入 | B36: 13,499 | C36: 13,499 | D36: 100
A37: 一般性转移支付收入 | B37: 24,325 | C37: 25,986 | D37: 93.6
A38: 专项转移支付收入
A39: 上解收入
A40: 上年结余收入
A41: 调入资金 | B41: 106,154 | C41: 87,053 | D41: 121.9
A42: 债券转贷收入 | B42: 20,796 | C42: 35,225 | D42: 59
A43: 动用预算稳定调节基金 | B43: 29,950 | C43: 39,300 | D43: 76.2
A44: 区域间转移性收入
A45: 收入合计 | B45: =B32+B34 -> 361,914 | C45: 363,413 | D45: 99.6

Sheet 附表1-2
A1: 附表1-2
A2: 2025年度一般公共预算支出预算表
D3: 单位：万元
A4: 项目 | B4: 当年预算数 | C4: 上年预算数 | D4: 当年预算数为上年预算数的％
A5: 一、一般公共服务支出 | B5: 34,061 | C5: 30,684 | D5: =IF(C5<>0,ROUND(B5/C5*100,1)," ") -> 111
A6: 二、外交支出 | D6: =IF(C6<>0,ROUND(B6/C6*100,1)," ") -> 
A7: 三、国防支出 | B7: 558 | C7: 536 | D7: 104.1
A8: 四、公共安全支出 | B8: 7,101 | C8: 7,375 | D8: 96.3
A9: 五、教育支出 | B9: 86,448 | C9: 84,136 | D9: 102.7
A10: 六、科学技术支出 | B10: 2,979 | C10: 2,849 | D10: 104.6
A11: 七、文化旅游体育与传媒支出 | B11: 3,853 | C11: 2,538 | D11: 151.8
A12: 八、社会保障和就业支出 | B12: 52,013 | C12: 53,971 | D12: 96.4
A13: 九、卫生健康支出 | B13: 27,104 | C13: 25,411 | D13: 106.7
A14: 十、节能环保支出 | B14: 250 | C14: 250 | D14: 100
A15: 十一、城乡社区支出 | B15: 11,260 | C15: 16,275 | D15: 69.2
A16: 十二、农林水支出 | B16: 2,517 | C16: 2,630 | D16: 95.7
A17: 十三、交通运输支出 | B17: 150 | C17: 150 | D17: 100
A18: 十四、资源勘探工业信息等支出 | B18: 10,020 | C18: 12,404 | D18: 80.8
A19: 十五、商业服务业等支出 | B19: 100 | C19: 250 | D19: 40
A20: 十六、金融支出
A21: 十七、援助其他地区支出
A22: 十八、自然资源海洋气象等支出 | B22: 705 | C22: 886 | D22: 79.6
A23: 十九、住房保障支出
A24: 二十、粮油物资储备支出
A25: 二十一、灾害防治及应急管理支出 | B25: 5,983 | C25: 3,390 | D25: 176.5
A26: 二十二、预备费 | B26: 2,706 | C26: 2,624 | D26: 103.1
A27: 二十三、其他支出 | B27: 16,369 | C27: 16,228 | D27: 100.9
A28: 二十四、债务付息支出 | B28: 7,284 | C28: 8,217 | D28: 88.6
A29: 二十五、债务发行费用支出 | B29: 19 | C29: 35 | D29: 54.3
A30: 支出小计 | B30: =SUM(B5:B29) -> 271,480 | C30: 270,839 | D30: 100.2
A31: 债务还本支出 | B31: 22,936 | C31: 35,225 | D31: 65.1
A32: 转移性支出 | B32: =B33+B37+B38 -> 67,498 | C32: 57,349 | D32: 117.7
A33: 补助下级支出
A34: 返还性支出
A35: 一般性转移支付支出
A36: 专项转移支付支出
A37: 上解支出 | B37: 60,319 | C37: 57,349 | D37: 105.2
A38: 调出资金 | B38: 7,179
A39: 年终结余
A40: 债务转贷支出
A41: 安排预算稳定调节基金
A42: 补充预算周转金
A43: 区域间转移性支出
A44: 支出合计 | B44: =B30+B31+B32 -> 361,914 | C44: 363,413 | D44: 99.6

Sheet 附表1-3
A1: 附表1-3
A2: 2025年度本级一般公共预算收入预算表
D3: 单位：万元
A4: 项目 | B4: 当年预算数 | C4: 上年预算数 | D4: 当年预算数为上年预算数的％
A5: 一、税收收入 | B5: =SUM(B6:B22) -> 126,970 | C5: 116,590 | D5: =IF(C5<>0,ROUND(B5/C5*100,1)," ") -> 108.9
A6: 增值税 | B6: 47,320 | C6: 50,880 | D6: =IF(C6<>0,ROUND(B6/C6*100,1)," ") -> 93
A7: 消费税
A8: 企业所得税 | B8: 15,620 | C8: 21,340 | D8: 73.2
A9: 企业所得税退税
A10: 个人所得税 | B10: 5,020 | C10: 4,240 | D10: 118.4
A11: 资源税 | B11: 5
A12: 城市维护建设税 | B12: 10,560 | C12: 9,030 | D12: 116.9
A13: 房产税 | B13: 11,385 | C13: 7,730 | D13: 147.3
A14: 印花税 | B14: 4,950 | C14: 2,920 | D14: 169.5
A15: 城镇土地使用税 | B15: 4,565 | C15: 3,930 | D15: 116.2
A16: 土地增值税 | B16: 19,675 | C16: 11,300 | D16: 174.1
A17: 车船税 | B17: 6,715 | C17: 5,100 | D17: 131.7
A18: 耕地占用税 | B18: 100
A19: 契税 | B19: 1,000 | C19: 60 | D19: 1666.7
A20: 烟叶税
A21: 环境保护税 | B21: 50 | C21: 60 | D21: 83.3
A22: 其他税收收入 | B22: 5
A23: 二、非税收入 | B23: =SUM(B24:B31) -> 40,220 | C23: 45,760 | D23: 87.9
A24: 专项收入 | B24: 3,120 | C24: 4,320 | D24: 72.2
A25: 行政事业性收费收入 | B25: 1,590 | C25: 1,880 | D25: 84.6
A26: 罚没收入 | B26: 590 | C26: 360 | D26: 163.9
A27: 国有资本经营收入
A28: 国有资源（资产）有偿使用收入 | B28: 34,920 | C28: 39,000 | D28: 89.5
A29: 捐赠收入 | C29: 200 | D29: 0
A30: 政府住房基金收入
A31: 其他收入
A32: 收入小计 | B32: =B23+B5 -> 167,190 | C32: 162,350 | D32: 103
A33: 三、债务收入
A34: 四、转移性收入 | B34: =B35+B41+B42+B43 -> 194,724 | C34: 201,063 | D34: 96.8
A35: 上级补助收入 | B35: =B36+B37 -> 37,824 | C35: 39,485 | D35: 95.8
A36: 返还性收入 | B36: 13,499 | C36: 13,499 | D36: 100
A37: 一般性转移支付收入 | B37: 24,325 | C37: 25,986 | D37: 93.6
A38: 专项转移支付收入
A39: 上解收入
A40: 上年结余收入
A41: 调入资金 | B41: 106,154 | C41: 87,053 | D41: 121.9
A42: 债券转贷收入 | B42: 20,796 | C42: 35,225 | D42: 59
A43: 动用预算稳定调节基金 | B43: 29,950 | C43: 39,300 | D43: 76.2
A44: 区域间转移性收入
A45: 收入合计 | B45: =B32+B34 -> 361,914 | C45: 363,413 | D45: 99.6

Sheet 附表1-4
A1: 附表1-4
A2: 2025年度本级一般公共预算支出预算表
D3: 单位：万元
A4: 项目 | B4: 当年预算数 | C4: 上年预算数 | D4: 当年预算数为上年预算数的％
A5: 一、一般公共服务支出 | B5: 34,061 | C5: 30,684 | D5: =IF(C5<>0,ROUND(B5/C5*100,1)," ") -> 111
A6: 二、外交支出 | D6: =IF(C6<>0,ROUND(B6/C6*100,1)," ") -> 
A7: 三、国防支出 | B7: 558 | C7: 536 | D7: 104.1
A8: 四、公共安全支出 | B8: 7,101 | C8: 7,375 | D8: 96.3
A9: 五、教育支出 | B9: 86,448 | C9: 84,136 | D9: 102.7
A10: 六、科学技术支出 | B10: 2,979 | C10: 2,849 | D10: 104.6
A11: 七、文化旅游体育与传媒支出 | B11: 3,853 | C11: 2,538 | D11: 151.8
A12: 八、社会保障和就业支出 | B12: 52,013 | C12: 53,971 | D12: 96.4
A13: 九、卫生健康支出 | B13: 27,104 | C13: 25,411 | D13: 106.7
A14: 十、节能环保支出 | B14: 250 | C14: 250 | D14: 100
A15: 十一、城乡社区支出 | B15: 11,260 | C15: 16,275 | D15: 69.2
A16: 十二、农林水支出 | B16: 2,517 | C16: 2,630 | D16: 95.7
A17: 十三、交通运输支出 | B17: 150 | C17: 150 | D17: 100
A18: 十四、资源勘探工业信息等支出 | B18: 10,020 | C18: 12,404 | D18: 80.8
A19: 十五、商业服务业等支出 | B19: 100 | C19: 250 | D19: 40
A20: 十六、金融支出
A21: 十七、援助其他地区支出
A22: 十八、自然资源海洋气象等支出 | B22: 705 | C22: 886 | D22: 79.6
A23: 十九、住房保障支出
A24: 二十、粮油物资储备支出
A25: 二十一、灾害防治及应急管理支出 | B25: 5,983 | C25: 3,390 | D25: 176.5
A26: 二十二、预备费 | B26: 2,706 | C26: 2,624 | D26: 103.1
A27: 二十三、其他支出 | B27: 16,369 | C27: 16,228 | D27: 100.9
A28: 二十四、债务付息支出 | B28: 7,284 | C28: 8,217 | D28: 88.6
A29: 二十五、债务发行费用支出 | B29: 19 | C29: 35 | D29: 54.3
A30: 支出小计 | B30: =SUM(B5:B29) -> 271,480 | C30: 270,839 | D30: 100.2
A31: 债务还本支出 | B31: 22,936 | C31: 35,225 | D31: 65.1
A32: 转移性支出 | B32: =B33+B37+B38 -> 67,498 | C32: 57,349 | D32: 117.7
A33: 补助下级支出
A34: 返还性支出
A35: 一般性转移支付支出
A36: 专项转移支付支出
A37: 上解支出 | B37: 60,319 | C37: 57,349 | D37: 105.2
A38: 调出资金 | B38: 7,179
A39: 年终结余
A40: 债务转贷支出
A41: 安排预算稳定调节基金
A42: 补充预算周转金
A43: 区域间转移性支出
A44: 支出合计 | B44: =B30+B31+B32 -> 361,914 | C44: 363,413 | D44: 99.6

Sheet 附表1-5
A1: 附表1-5
A2: 2025年度本级一般公共预算支出预算功能分类明细表
E3: 单位：万元
A4: 科目编码 | B4: 项目 | C4: 当年预算数 | D4: 上年预算数 | E4: 当年预算数为上年预算数的％
A5: 201 | B5: 一、一般公共服务支出 | C5: =SUM(C6,C12,C17,C23,C30,C36,C40,C42,C47,C53,C57,C59,C62,C65,C68,C73,C77,C81,C85,C91,C95,C101,C104) -> 34,061 | D5: =SUM(D6,D12,D17,D23,D30,D36,D40,D42,D47,D53,D57,D59,D62,D65,D68,D73,D77,D81,D85,D91,D95,D101,D104) -> 30,684 | E5: =IF(D5<>0,ROUND(C5/D5*100,1)," ") -> 111
A6: 20101 | B6: 1.人大事务 | C6: 1,262 | D6: 1,020 | E6: =IF(D6<>0,ROUND(C6/D6*100,1)," ") -> 123.7
A7: 2010101 | B7: ①行政运行 | C7: 972 | D7: 719 | E7: 135.2
A8: 2010102 | B8: ②一般行政管理事务 | C8: 128 | D8: 135 | E8: 94.8
A9: 2010104 | B9: ③人大会议 | C9: 57 | D9: 60 | E9: 95
A10: 2010108 | B10: ④代表工作 | C10: 50 | D10: 50 | E10: 100
A11: 2010150 | B11: ⑤事业运行 | C11: 55 | D11: 56 | E11: 98.2
A12: 20102 | B12: 2.政协事务 | C12: 768 | D12: 782 | E12: 98.2
A13: 2010201 | B13: ①行政运行 | C13: 586 | D13: 570 | E13: 102.8
A14: 2010202 | B14: ②一般行政管理事务 | C14: 79 | D14: 98 | E14: 80.6
A15: 2010204 | B15: ③政协会议 | C15: 50 | D15: 60 | E15: 83.3
A16: 2010250 | B16: ④事业运行 | C16: 53 | D16: 54 | E16: 98.1
A17: 20103 | B17: 3.政府办公厅（室）及相关机构事务 | C17: 9,505 | D17: 9,700 | E17: 98
A18: 2010301 | B18: ①行政运行 | C18: 4,620 | D18: 5,860 | E18: 78.8
A19: 2010302 | B19: ②一般行政管理事务 | C19: 341 | D19: 478 | E19: 71.3
A20: 2010303 | B20: ③机关服务 | C20: 2,920 | D20: 2,168 | E20: 134.7
A21: 2010306 | B21: ④政务公开审批 | C21: 1,113 | D21: 698 | E21: 159.5
A22: 2010350 | B22: ⑤事业运行 | C22: 511 | D22: 496 | E22: 103
A23: 20104 | B23: 4.发展与改革事务 | C23: 1,063 | D23: 786 | E23: 135.2
A24: 2010401 | B24: ①行政运行 | C24: 252 | D24: 237 | E24: 106.3
A25: 2010402 | B25: ②一般行政管理事务 | C25: 443 | D25: 205 | E25: 216.1
A26: 2010406 | B26: ③社会事业发展规划 | C26: 0 | D26: 0
A27: 2010408 | B27: ③物价管理 | C27: 3 | D27: 3 | E27: 100
A28: 2010450 | B28: ④事业运行 | C28: 365 | D28: 341 | E28: 107
A29: 2010499 | B29: ⑤其他发展与改革事务支出 | C29: 0 | D29: 0
A30: 20105 | B30: 5.统计信息事务 | C30: 629 | D30: 686 | E30: 91.7
A31: 2010501 | B31: ①行政运行 | C31: 417 | D31: 367 | E31: 113.6
A32: 2010502 | B32: ②一般行政管理事务 | C32: 10 | D32: 14 | E32: 71.4
A33: 2010505 | B33: ③专项统计业务 | C33: 132 | D33: 103 | E33: 128.2
A34: 2010507 | B34: ④专项普查活动 | C34: 5 | D34: 143 | E34: 3.5
A35: 2010550 | B35: ⑤事业运行 | C35: 65 | D35: 59 | E35: 110.2
A36: 20106 | B36: 6.财政事务 | C36: 1,435 | D36: 1,554 | E36: 92.3
A37: 2010601 | B37: ①行政运行 | C37: 265 | D37: 276 | E37: 96
A38: 2010602 | B38: ②一般行政管理事务 | C38: 314 | D38: 371 | E38: 84.6
A39: 2010650 | B39: ③事业运行 | C39: 856 | D39: 907 | E39: 94.4
A40: 20107 | B40: 7.税收事务 | C40: 2,500 | D40: 2,802 | E40: 89.2
A41: 2010799 | B41: ①其他税收事务支出 | C41: 2,500 | D41: 2,802 | E41: 89.2
A42: 20108 | B42: 8.审计事务 | C42: 459 | D42: 374 | E42: 122.7
A43: 2010801 | B43: ①行政运行 | C43: 179 | D43: 138 | E43: 129.7
A44: 2010804 | B44: ②审计业务 | D44: 0
A45: 2010850 | B45: ③事业运行 | C45: 261 | D45: 217 | E45: 120.3
A46: 2010899 | B46: ④其他审计事务支出 | C46: 19 | D46: 19 | E46: 100
A47: 20111 | B47: 9.纪检监察事务 | C47: 2,116 | D47: 2,202 | E47: 96.1
A48: 2011101 | B48: ①行政运行 | C48: 1,342 | D48: 1,302 | E48: 103.1
A49: 2011102 | B49: ②一般行政管理事务 | C49: 146 | D49: 375 | E49: 38.9
A50: 2011104 | B50: ③大案要案查处 | C50: 120 | D50: 120 | E50: 100
A51: 2011105 | B51: ④派驻派出机构 | C51: 13 | D51: 0
A52: 2011150 | B52: ⑤事业运行 | C52: 495 | D52: 405 | E52: 122.2
A53: 20113 | B53: 10.商贸事务 | C53: 1,158 | D53: 1,376 | E53: 84.2
A54: 2011301 | B54: ①行政运行 | C54: 393 | D54: 385 | E54: 102.1
A55: 2011302 | B55: ②一般行政管理事务 | C55: 275 | D55: 540 | E55: 50.9
A56: 2011350 | B56: ③事业运行 | C56: 490 | D56: 451 | E56: 108.6
A57: 20123 | B57: 11.民族事务 | C57: 70 | D57: 70 | E57: 100
A58: 2012302 | B58: ①一般行政管理事务 | C58: 70 | D58: 70 | E58: 100
A59: 20125 | B59: 12.港澳台事务 | C59: 159 | D59: 13 | E59: 1223.1
A60: 2012501 | B60: ①行政运行 | C60: 116 | D60: 0
A61: 2012502 | B61: ②一般行政管理事务 | C61: 43 | D61: 13 | E61: 330.8
A62: 20126 | B62: 13.档案事务 | C62: 437 | D62: 382 | E62: 114.4
A63: 2012601 | B63: ①行政运行 | C63: 375 | D63: 315 | E63: 119
A64: 2012602 | B64: ②一般行政管理事务 | C64: 62 | D64: 67 | E64: 92.5
A65: 20128 | B65: 14.民主党派及工商联事务 | C65: 102 | D65: 80 | E65: 127.5
A66: 2012801 | B66: ①行政运行 | C66: 90 | D66: 80 | E66: 112.5
A67: 2012802 | B67: ②一般行政管理事务 | C67: 12 | D67: 0
A68: 20129 | B68: 15.群众团体事务 | C68: 1,067 | D68: 945 | E68: 112.9
A69: 2012901 | B69: ①行政运行 | C69: 629 | D69: 456 | E69: 137.9
A70: 2012902 | B70: ②一般行政管理事务 | C70: 243 | D70: 311 | E70: =IF(D70<>0,ROUND(C70/D70*100,1)," ") -> 78.1
A71: 2012950 | B71: ③事业运行 | C71: 195 | D71: 162 | E71: =IF(D71<>0,ROUND(C71/D71*100,1)," ") -> 120.4
A72: 2012999 | B72: ④其他群众团体事务支出 | C72: 0 | D72: 16 | E72: =IF(D72<>0,ROUND(C72/D72*100,1)," ") -> 0
A73: 20131 | B73: 16.党委办公厅（室）及相关机构事务 | C73: 943 | D73: 824 | E73: =IF(D73<>0,ROUND(C73/D73*100,1)," ") -> 114.4
A74: 2013101 | B74: ①行政运行 | C74: 400 | D74: 446 | E74: 89.7
A75: 2013102 | B75: ②一般行政管理事务 | C75: 345 | D75: 188 | E75: 183.5
A76: 2013150 | B76: ③事业运行 | C76: 198 | D76: 190 | E76: 104.2
A77: 20132 | B77: 17.组织事务 | C77: 1,096 | D77: 1,019 | E77: 107.6
A78: 2013201 | B78: ①行政运行 | C78: 456 | D78: 385 | E78: 118.4
A79: 2013202 | B79: ②一般行政管理事务 | C79: 598 | D79: 599 | E79: 99.8
A80: 2013250 | B80: ③事业运行 | C80: 42 | D80: 35 | E80: 120
A81: 20133 | B81: 18.宣传事务 | C81: 1,787 | D81: 2,180 | E81: 82
A82: 2013301 | B82: ①行政运行 | C82: 583 | D82: 718 | E82: 81.2
A83: 2013302 | B83: ②一般行政管理事务 | C83: 1,000 | D83: 1,175 | E83: 85.1
A84: 2013350 | B84: ③事业运行 | C84: 204 | D84: 287 | E84: 71.1
A85: 20134 | B85: 19.统战事务 | C85: 520 | D85: =446+19 -> 465 | E85: 111.8
A86: 2013401 | B86: ①行政运行 | C86: 266 | D86: 216 | E86: 123.1
A87: 2013402 | B87: ②一般行政管理事务 | C87: 118 | D87: 124 | E87: 95.2
A88: 2013404 | B88: ③宗教事务 | C88: 20 | D88: 10 | E88: 200
A89: 2013405 | B89: ④华侨事务 | C89: 7 | D89: 26 | E89: 26.9
A90: 2013450 | B90: ⑤事业运行 | C90: 109 | D90: 89 | E90: 122.5
A91: 20136 | B91: 20.其他共产党事务支出 | C91: 1,087 | D91: 686 | E91: 158.5
A92: 2013601 | B92: ①行政运行 | C92: 566 | D92: 577 | E92: 98.1
A93: 2013602 | B93: ②一般行政管理事务 | C93: 230 | D93: 15 | E93: 1533.3
A94: 2013650 | B94: ③事业运行 | C94: 291 | D94: 94 | E94: 309.6
A95: 20138 | B95: 21.市场监督管理事务 | C95: 2,382 | D95: 2,543 | E95: 93.7
A96: 2013801 | B96: ①行政运行 | C96: 1,599 | D96: 1,812 | E96: 88.2
A97: 2013802 | B97: ②一般行政管理事务 | C97: 268 | D97: 206 | E97: 130.1
A98: 2013815 | B98: ③质量安全监管 | D98: 0
A99: 2013816 | B99: ④食品安全监管 | C99: 260 | D99: 265 | E99: 98.1
A100: 2013850 | B100: ⑤事业运行 | C100: 255 | D100: 260 | E100: 98.1
A101: 20139 | B101: 22.社会工作事务 | C101: 3,300 | D101: 0
A102: 2013902 | B102: ①一般行政管理事务 | C102: 75 | D102: 0
A103: 2013904 | B103: ②专项业务 | C103: 3,225 | D103: 0
A104: 20140 | B104: 23.信访事务 | C104: 216 | D104: 195 | E104: 110.8
A105: 2014001 | B105: ①行政运行 | C105: 216 | D105: 0
A106: 2014002 | B106: ②一般行政管理事务 | C106: 0 | D106: 0
A107: 2014004 | B107: ①信访业务 | D107: 195 | E107: 0
A108: 203 | B108: 二、国防支出 | C108: =SUM(C109,C112) -> 558 | D108: =SUM(D109,D112) -> 536 | E108: 104.1
A109: 20306 | B109: 1.国防动员 | C109: 558 | D109: 536 | E109: 104.1
A110: 2030601 | B110: ①兵役征集 | C110: 60 | D110: 0
A111: 2030607 | B111: ②民兵 | C111: 498 | D111: 536 | E111: 92.9
A112: 20399 | B112: 2.其他国防支出 | D112: 0
A113: 2039999 | B113: ①其他国防支出 | D113: 0
A114: 204 | B114: 三、公共安全支出 | C114: =SUM(C115,C117,C119,C123,C132) -> 7,101 | D114: =SUM(D115,D117,D119,D123,D132) -> 7,375 | E114: 96.3
A115: 20402 | B115: 1.公安 | C115: 4,600 | D115: 5,000 | E115: 92
A116: 2040299 | B116: ①其他公安支出 | C116: 4,600 | D116: 5,000 | E116: 92
A117: 20404 | B117: 2.检察 | C117: 24 | D117: 24 | E117: 100
A118: 2040402 | B118: ①一般行政管理事务 | C118: 24 | D118: 24 | E118: 100
A119: 20405 | B119: 3.法院 | C119: 107 | D119: 87 | E119: 123
A120: 2040501 | B120: ①行政运行 | C120: 87 | D120: 0
A121: 2040502 | B121: ②一般行政管理事务 | C121: 20 | D121: 87 | E121: 23
A122: 2040599 | B122: ③其他法院支出 | C122: 0 | D122: 0
A123: 20406 | B123: 4.司法 | C123: 1,222 | D123: 1,383 | E123: 88.4
A124: 2040601 | B124: ①行政运行 | C124: 828 | D124: 902 | E124: 91.8
A125: 2040604 | B125: ②基层司法业务 | C125: 50 | D125: 55 | E125: 90.9
A126: 2040605 | B126: ③普法宣传 | C126: 43 | D126: 43 | E126: 100
A127: 2040607 | B127: ④公共法律服务 | C127: 133 | D127: =125+13 -> 138 | E127: 96.4
A128: 2040610 | B128: ⑤社区矫正 | C128: 93 | D128: =84+8 -> 92 | E128: 101.1
A129: 2040612 | B129: ⑥法治建设 | C129: 55 | D129: 58 | E129: 94.8
A130: 2040613 | B130: ⑦信息化建设 | C130: 0 | D130: 7 | E130: 0
A131: 2040699 | B131: ⑧其他司法支出 | C131: 20 | D131: =20+68 -> 88 | E131: 22.7
A132: 20499 | B132: 5.其他公共安全支出 | C132: 1,148 | D132: 881 | E132: 130.3
A133: 2049999 | B133: ①其他公共安全支出 | C133: 1,148 | D133: 881 | E133: 130.3
A134: 205 | B134: 四、教育支出 | C134: =SUM(C135,C138,C144,C146,C148,C150,C153,C156) -> 86,448 | D134: =SUM(D135,D138,D144,D146,D148,D150,D153,D156) -> 84,136 | E134: 102.7
A135: 20501 | B135: 1.教育管理事务 | C135: 1,319 | D135: 1,217 | E135: =IF(D135<>0,ROUND(C135/D135*100,1)," ") -> 108.4
A136: 2050101 | B136: ①行政运行 | C136: 384 | D136: 203 | E136: 189.2
A137: 2050199 | B137: ②其他教育管理事务支出 | C137: 935 | D137: 1,014 | E137: 92.2
A138: 20502 | B138: 2.普通教育 | C138: =77045+155+142+971 -> 78,313 | D138: 77,722 | E138: 100.8
A139: 2050201 | B139: ①学前教育 | C139: =7676+155 -> 7,831 | D139: 8,020 | E139: 97.6
A140: 2050202 | B140: ②小学教育 | C140: 33,457 | D140: 33,928 | E140: 98.6
A141: 2050203 | B141: ③初中教育 | C141: 23,833 | D141: 22,827 | E141: 104.4
A142: 2050204 | B142: ④高中教育 | C142: =5382+142 -> 5,524 | D142: 4,940 | E142: 111.8
A143: 2050299 | B143: ⑤其他普通教育支出 | C143: =6697+971 -> 7,668 | D143: 8,007 | E143: 95.8
A144: 20503 | B144: 3.职业教育 | C144: =1979+64 -> 2,043 | D144: 564 | E144: 362.2
A145: 2050302 | B145: ①中等职业教育 | C145: =1979+64 -> 2,043 | D145: 564 | E145: 362.2
A146: 20504 | B146: 4.成人教育 | C146: 336 | D146: 336 | E146: 100
A147: 2050499 | B147: ①其他成人教育支出 | C147: 336 | D147: 336 | E147: 100
A148: 20507 | B148: 5.特殊教育 | C148: =967+25 -> 992 | D148: 954 | E148: 104
A149: 2050701 | B149: ①特殊学校教育 | C149: =967+25 -> 992 | D149: 954 | E149: 104
A150: 20508 | B150: 6.进修及培训 | C150: 1,099 | D150: 943 | E150: 116.5
A151: 2050801 | B151: ①教师进修 | C151: 806 | D151: 719 | E151: 112.1
A152: 2050802 | B152: ②干部教育 | C152: 293 | D152: 224 | E152: 130.8
A153: 20509 | B153: 7.教育费附加安排的支出 | C153: 2,346 | D153: 2,400 | E153: 97.8
A154: 2050905 | B154: ①中等职业学校教学设施 | C154: 486 | D154: 0
A155: 2050999 | B155: ②其他教育费附加安排的支出 | C155: 1,860 | D155: 2,400 | E155: 77.5
A156: 20599 | B156: 8.其他教育支出 | C156: 0 | D156: 0
A157: 2059999 | B157: ①其他教育支出 | C157: 0 | D157: 0
A158: 206 | B158: 五、科学技术支出 | C158: 2,979 | D158: 2,849 | E158: 104.6
A159: 20601 | B159: 1.科学技术管理事务 | C159: 298 | D159: 230 | E159: 129.6
A160: 2060101 | B160: ①行政运行 | C160: 149 | D160: 96 | E160: 155.2
A161: 2060199 | B161: ②其他科学技术管理事务支出 | C161: 149 | D161: 134 | E161: 111.2
A162: 20604 | B162: 2.技术研究与开发 | C162: 1,860 | D162: 1,830 | E162: 101.6
A163: 2060499 | B163: ①其他技术研究与开发支出 | C163: 1,860 | D163: 1,830 | E163: 101.6
A164: 20607 | B164: 3.科学技术普及 | C164: 312 | D164: 304 | E164: 102.6
A165: 2060701 | B165: ①机构运行 | C165: 164 | D165: 156 | E165: 105.1
A166: 2060702 | B166: ②科普活动 | C166: 148 | D166: 148 | E166: 100
A167: 20699 | B167: 4.其他科学技术支出 | C167: 509 | D167: 485 | E167: 104.9
A168: 2069999 | B168: ①其他科学技术支出 | C168: 509 | D168: 485 | E168: 104.9
A169: 207 | B169: 六、文化旅游体育与传媒支出 | C169: =3643+210 -> 3,853 | D169: =SUM(D170,D178,D180,D183) -> 2,538 | E169: 151.8
A170: 20701 | B170: 1.文化和旅游 | C170: 1,973 | D170: 1,594 | E170: 123.8
A171: 2070101 | B171: ①行政运行 | C171: 162 | D171: 171 | E171: 94.7
A172: 2070102 | B172: ②一般行政管理事务 | C172: 340 | D172: 130 | E172: 261.5
A173: 2070104 | B173: ③图书馆 | C173: 726 | D173: 365 | E173: 198.9
A174: 2070109 | B174: ④群众文化 | C174: 114 | D174: 204 | E174: 55.9
A175: 2070111 | B175: ⑤文化创作与保护 | C175: 20 | D175: 40 | E175: 50
A176: 2070112 | B176: ⑥文化和旅游市场管理 | C176: 311 | D176: 294 | E176: 105.8
A177: 2070199 | B177: ⑦其他文化和旅游支出 | C177: 300 | D177: 390 | E177: 76.9
A178: 20702 | B178: 2.文物 | C178: =1000+210 -> 1,210 | D178: 415 | E178: 291.6
A179: 2070204 | B179: ①文物保护 | C179: =1000+210 -> 1,210 | D179: 415 | E179: 291.6
A180: 20703 | B180: 3.体育 | C180: 211 | D180: 96 | E180: 219.8
A181: 2070305 | B181: ①体育竞赛 | D181: 0
A182: 2070308 | B182: ②群众体育 | C182: 211 | D182: 96 | E182: 219.8
A183: 20799 | B183: 4.其他文化旅游体育与传媒支出 | C183: 459 | D183: 433 | E183: 106
A184: 2079903 | B184: ①文化产业发展专项支出 | C184: 0 | D184: 0
A185: 2079999 | B185: ②其他文化旅游体育与传媒支出 | C185: 459 | D185: 433 | E185: 106
A186: 208 | B186: 七、社会保障和就业支出 | C186: =SUM(C187,C196,C204,C212,C221,C228,C234,C241,C247,C250,C252,C254,C256,C258,C261,C266,C268) -> 52,013 | D186: =SUM(D187,D196,D204,D212,D221,D228,D234,D241,D247,D250,D252,D254,D256,D258,D261,D266,D268) -> 53,971 | E186: 96.4
A187: 20801 | B187: 1.人力资源和社会保障管理事务 | C187: 2,923 | D187: 4,022 | E187: 72.7
A188: 2080101 | B188: ①行政运行 | C188: 411 | D188: 260 | E188: 158.1
A189: 2080102 | B189: ②一般行政管理事务 | C189: 60 | D189: 43 | E189: 139.5
A190: 2080105 | B190: ③劳动保障监察 | C190: 0 | D190: 156 | E190: 0
A191: 2080106 | B191: ④就业管理事务 | C191: 1,342 | D191: 1,430 | E191: 93.8
A192: 2080107 | B192: ⑤社会保险业务管理事务 | C192: 12
A193: 2080109 | B193: ⑥社会保险经办机构 | C193: 268 | D193: 191 | E193: =IF(D193<>0,ROUND(C193/D193*100,1)," ") -> 140.3
A194: 2080112 | B194: ⑦劳动人事争议调解仲裁 | C194: 75 | D194: 76 | E194: 98.7
A195: 2080199 | B195: ⑧其他人力资源和社会保障管理事务支出 | C195: 755 | D195: 1,866 | E195: 40.5
A196: 20802 | B196: 2.民政管理事务 | C196: 858 | D196: 4,209 | E196: 20.4
A197: 2080201 | B197: ①行政运行 | C197: 230 | D197: 246 | E197: 93.5
A198: 2080202 | B198: ②一般行政管理事务 | C198: 303 | D198: 112 | E198: 270.5
A199: 2080206 | B199: ③社会组织管理 | C199: 15 | D199: 20 | E199: 75
A200: 2080207 | B200: ④行政区划和地名管理 | C200: 29 | D200: 39 | E200: =IF(D200<>0,ROUND(C200/D200*100,1)," ") -> 74.4
... 216 more rows

Sheet 附表1-6
A1: 附表1-6
A2: 2025年度本级一般公共预算支出经济分类情况表
D3: 单位：万元
A4: 项目 | B4: 当年预算数 | C4: 上年预算数 | D4: 当年预算数为上年预算数的％
A5: 一、机关工资福利支出 | B5: 23,639 | C5: 23,603 | D5: =IF(C5<>0,ROUND(B5/C5*100,1)," ") -> 100.2
A6: 二、机关商品和服务支出 | B6: 30,492 | C6: 44,425 | D6: =IF(C6<>0,ROUND(B6/C6*100,1)," ") -> 68.6
A7: 三、机关资本性支出 | B7: 11,894 | C7: 12,583 | D7: 94.5
A8: 四、机关资本性支出（基本建设） | B8: 200 | C8: 0
A9: 五、对事业单位经常性补助 | B9: 109,942 | C9: 104,848 | D9: 104.9
A10: 六、对事业单位资本性补助 | B10: 1,495 | C10: 248 | D10: 602.8
A11: 七、对企业补助 | B11: 12,774 | C11: 14,915 | D11: 85.6
A12: 八、对企业资本性支出 | C12: 0
A13: 九、对个人和家庭的补助 | B13: 33,872 | C13: 33,729 | D13: 100.4
A14: 十、对社会保障基金补助 | B14: 33,931 | C14: 14,472 | D14: 234.5
A15: 十一、债务利息及费用支出 | B15: 7,534 | C15: 8,251 | D15: 91.3
A16: 十二、债务还本支出 | C16: 0
A17: 十三、转移性支出 | C17: 1,600 | D17: 0
A18: 十四、预备费及预留 | C18: 2,624 | D18: 0
A19: 十五、其他支出 | B19: 5,707 | C19: 9,541 | D19: 59.8
A20: 合计 | B20: =SUM(B5:B19) -> 271,480 | C20: =SUM(C5:C19) -> 270,839 | D20: 100.2

Sheet 附表1-7
A1: 附表1-7
A2: 2025年度本级一般公共预算基本支出经济分类情况表
D3: 单位：万元
A4: 项目 | B4: 当年预算数 | C4: 上年预算数 | D4: 当年预算数为上年预算数的％
A5: 一、机关工资福利支出 | B5: =SUM(B6:B9) -> 19524 | C5: 23,553 | D5: =IF(C5<>0,ROUND(B5/C5*100,1)," ") -> 82.9
A6: 工资奖金津补贴 | B6: 11954 | C6: 13,390 | D6: =IF(C6<>0,ROUND(B6/C6*100,1)," ") -> 89.3
A7: 社会保障缴费 | B7: 3969 | C7: 2,102 | D7: 188.8
A8: 住房公积金 | B8: 1262 | C8: 1,202 | D8: 105
A9: 其他工资福利支出 | B9: 2339 | C9: 6,859 | D9: 34.1
A10: 二、机关商品和服务支出 | B10: =SUM(B11:B20) -> 2656 | C10: 5,240 | D10: 50.7
A11: 办公经费 | B11: 2077 | C11: 592 | D11: 350.8
A12: 会议费 | B12: 3 | C12: 0
A13: 培训费 | B13: 5 | C13: 0
A14: 专用材料购置费 | B14: 5 | C14: 0
A15: 委托业务费 | B15: 128 | C15: 317 | D15: 40.4
A16: 公务接待费 | B16: 41 | C16: 17 | D16: 241.2
A17: 因公出国（境）费用 | B17: 3 | C17: 5 | D17: 60
A18: 公务用车运行维护费 | B18: 138 | C18: 281 | D18: 49.1
A19: 维修（护）费 | B19: 26 | C19: 0
A20: 其他商品和服务支出 | B20: 230 | C20: 4,028 | D20: 5.7
A21: 三、机关资本性支出 | B21: =SUM(B22:B28) -> 759 | C21: 570 | D21: 133.2
A22: 房屋建筑物购建 | B22: 0 | C22: 0
A23: 基础设施建设 | C23: 0
A24: 公务用车购置 | B24: 14 | C24: 0
A25: 土地征迁补偿和安置支出 | B25: 0 | C25: 0
A26: 设备购置 | B26: 745 | C26: 570 | D26: 130.7
A27: 大型修缮 | C27: 0
A28: 其他资本性支出 | C28: 0
A29: 四、机关资本性支出（基本建设） | B29: =SUM(B30:B35) -> 0 | C29: 0
A30: 房屋建筑物购建 | C30: 0
A31: 基础设施建设 | C31: 0
A32: 公务用车购置 | C32: 0
A33: 设备购置 | C33: 0
A34: 大型修缮 | C34: 0
A35: 其他资本性支出 | C35: 0
A36: 五、对事业单位经常性补助 | B36: =SUM(B37:B39) -> 102434 | C36: 94,010 | D36: 109
A37: 工资福利支出 | B37: 92147 | C37: 87,041 | D37: 105.9
A38: 商品和服务支出 | B38: 10287 | C38: 6,969 | D38: =IF(C38<>0,ROUND(B38/C38*100,1)," ") -> 147.6
A39: 其他对事业单位补助 | C39: 0
A40: 六、对事业单位资本性补助 | B40: =SUM(B41:B42) -> 1242 | C40: 0
A41: 资本性支出 | B41: 1242 | C41: 0
A42: 资本性支出（基本建设） | C42: 0
A43: 七、对企业补助 | B43: =SUM(B44:B46) -> 0 | C43: 0
A44: 费用补贴 | C44: 0
A45: 利息补贴 | C45: 0
A46: 其他对企业补助 | C46: 0
A47: 八、对企业资本性支出 | B47: =SUM(B48:B51) -> 0 | C47: 0
A48: 资本金注入 | B48: 0 | C48: 0
A49: 资本金注入（基本建设） | B49: 0 | C49: 0
A50: 政府投资基金股权投资 | B50: 0 | C50: 0
A51: 其他对企业资本性支出 | B51: 0 | C51: 0
A52: 九、对个人和家庭的补助 | B52: =SUM(B53:B57) -> 11869 | C52: 10,649 | D52: 111.5
A53: 社会福利和救助 | B53: 963 | C53: 287 | D53: 335.5
A54: 助学金 | B54: 160 | C54: 0
A55: 个人农业生产补贴 | C55: 0
A56: 离退休费 | B56: 10439 | C56: 9,087 | D56: 114.9
A57: 其他对个人和家庭的补助 | B57: 307 | C57: 1,275 | D57: 24.1
A58: 十、对社会保障基金补助 | B58: =SUM(B59:B61) -> 0 | C58: 0
A59: 对社会保险基金补助 | C59: 0
A60: 补充全国社会保障基金 | C60: 0
A61: 对机关事业单位职业年金的补助 | C61: 0
A62: 十一、债务利息及费用支出 | B62: =SUM(B63:B66) -> 7303 | C62: 8,251 | D62: 88.5
A63: 国内债务付息 | B63: 7284 | C63: 8,216 | D63: 88.7
A64: 国外债务付息 | C64: 0
A65: 国内债务发行费用 | B65: 19 | C65: 35 | D65: 54.3
A66: 国外债务发行费用 | C66: 0
A67: 十二、债务还本支出 | B67: =SUM(B68:B69) -> 0 | C67: 0
A68: 国内债务还本 | C68: 0
A69: 国外债务还本 | C69: 0
A70: 十三、转移性支出 | B70: =SUM(B71:B76) -> 0 | C70: 0 | D70: =IF(C70<>0,ROUND(B70/C70*100,1)," ") -> 
A71: 上下级政府间转移性支出 | C71: 0
A72: 债务转贷 | C72: 0
A73: 调出资金 | C73: 0
A74: 安排预算稳定调节基金 | C74: 0
A75: 补充预算周转金 | C75: 0
A76: 区域间转移性支出 | C76: 0
A77: 十四、预备费及预留 | B77: =SUM(B78:B79) -> 0 | C77: 0
A78: 预备费 | C78: 0
A79: 预留 | C79: 0
A80: 十五、其他支出 | B80: =SUM(B81:B85) -> 2340 | C80: 2,307 | D80: 101.4
A81: 国家赔偿费用支出 | C81: 0
A82: 对民间非营利组织和群众性自治组织补贴 | B82: 2340 | C82: 2,307 | D82: 101.4
A83: 经常性赠与 | C83: 0
A84: 资本性赠与 | C84: 0
A85: 其他支出 | C85: 0
A86: 合计 | B86: =SUM(B5,B10,B21,B29,B36,B40,B43,B47,B52,B58,B62,B67,B70,B77,B80) -> 148127 | C86: 144,580 | D86: 102.5

Sheet 附表1-8
A1: 附表1-8
A2: 2025年度一般公共预算转移支付预算表（分项目）
B3: 单位：万元
A4: 项目 | B4: 金额
A5: 一、税收返还
A6: 1.所得税基数返还支出
A7: 2.成品油税费改革税收返还支出
A8: 3.增值税税收返还支出
A9: 4.消费税税收返还支出
A10: 5.增值税“五五分享”税收返还支出
A11: 二、一般性转移支付
A12: 1.体制补助支出
A13: 2.均衡性转移支付支出
A14: 3.县级基本财力保障机制奖补资金支出
A15: 4.结算补助支出
A16: 5.资源枯竭型城市转移支付补助支出
A17: 6.企业事业单位划转补助支出
A18: 7.产粮（油）大县奖励资金支出
A19: 8.重点生态功能区转移支付支出
A20: 9.固定数额补助支出
A21: 10.革命老区转移支付支出
A22: 11.民族地区转移支付支出
A23: 12.边境地区转移支付支出
A24: 13.巩固脱贫攻坚成果衔接乡村振兴转移支付支出
A25: 14.一般公共服务共同财政事权转移支付支出
A26: 15.公共安全共同财政事权转移支付支出
A27: 16.教育共同财政事权转移支付支出
A28: 17.科学技术共同财政事权转移支付支出
A29: 18.文化旅游体育与传媒共同财政事权转移支付支出
A30: 19.社会保障和就业共同财政事权转移支付支出
A31: 20.医疗卫生共同财政事权转移支付支出
A32: 21.节能环保共同财政事权转移支付支出
A33: 22.城乡社区共同财政事权转移支付支出
A34: 23.农林水共同财政事权转移支付支出
A35: 24.交通运输共同财政事权转移支付支出
A36: 25.资源勘探工业信息等共同财政事权转移支付支出
A37: 26.商业服务业等共同财政事权转移支付支出
A38: 27.金融共同财政事权转移支付支出
A39: 28.自然资源海洋气象等共同财政事权转移支付支出
A40: 29.住房保障共同财政事权转移支付支出
A41: 30.粮油物资储备共同财政事权转移支付支出
A42: 31.灾害防治及应急管理共同财政事权转移支付支出
A43: 32.其他共同财政事权转移支付支出
A44: 33.其他一般性转移支付支出
A45: 三、专项转移支付
A46: 1.一般公共服务支出
A47: 其中：××项目 …………
A48: 2.公共安全支出
A49: 其中：××项目 …………
A50: 3.教育支出
A51: 其中：××项目 …………
A52: 4.科学技术支出
A53: 其中：××项目 …………
A54: 5.文化旅游体育与传媒支出
A55: 其中：××项目 …………
A56: 6.社会保障和就业支出
A57: 其中：××项目 …………
A58: 7.卫生健康支出
A59: 其中：××项目 …………
A60: 8.节能环保支出
A61: 其中：××项目 …………
A62: 9.城乡社区支出
A63: 其中：××项目 …………
A64: 10.农林水支出
A65: 其中：××项目 …………
A66: 11.交通运输支出
A67: 其中：××项目 …………
A68: 12.资源勘探工业信息等支出
A69: 其中：××项目 …………
A70: 13.商业服务业等支出
A71: 其中：××项目 …………
A72: 14.金融支出
A73: 其中：××项目 …………
A74: 15.自然资源海洋气象等支出
A75: 其中：××项目 …………
A76: 16.住房保障支出
A77: 其中：××项目 …………
A78: 17.粮油物资储备支出
A79: 其中：××项目 …………
A80: 18.灾害防治及应急管理支出
A81: 其中：××项目 …………
A82: 19.其他支出
A83: 其中：××项目 …………
A84: 合计
A85: 本区所辖乡镇作为一级预算部门管理，未单独编制政府预算，因此无一般公共预算转移支付预算数据。

Sheet 附表1-9
A1: 附表1-9
A2: 2025年度一般公共预算转移支付预算表（分地区）
E3: 单位：万元
A4: 地区 | B4: 小计 | C4: 税收返还 | D4: 一般性转移支付 | E4: 专项转移支付
A5: ××地区
A6: ××地区
A7: ××地区
A8: ××地区
A9: ××地区
A10: ××地区
A11: ××地区
A12: ××地区
A13: ××地区
A14: ××地区
A15: 未落实到地区数
A16: 合计
A17: 本区所辖乡镇作为一级预算部门管理，未单独编制政府预算，因此无一般公共预算转移支付预算数据。

Sheet 附表1-10
A1: 附表1-10
A2: 2025年度本级一般公共预算“三公”经费支出预算表
A3: 单位：万元
A4: 项目 | B4: 当年预算数 | C4: 上年预算数 | D4: 当年预算数为上年预算数的％
A5: 一、因公出国（境）费用 | B5: 50 | C5: 42 | D5: =IF(C5<>0,ROUND(B5/C5*100,1)," ") -> 119
A6: 二、公务接待费 | B6: 71 | C6: 53 | D6: 134
A7: 三、公务用车购置及运行费 | B7: 366 | C7: 436 | D7: 83.9
A8: 其中：1.公务用车运行费 | B8: 212 | C8: 281 | D8: 75.4
A9: 2.公务用车购置费 | B9: 154 | C9: 155 | D9: 99.4
A10: 合计 | B10: 487 | C10: 531 | D10: 91.7

Sheet 附表1-11
A1: 附表1-11
A2: 2025年度政府性基金预算收入预算表
D3: 单位：万元
A4: 项目 | B4: 当年预算数 | C4: 上年预算数 | D4: 当年预算数为上年预算数的％
A5: 一、非税收入
A6: （一）政府性基金收入
A7: 1.国家电影事业发展专项资金收入
A8: 2.国有土地收益基金收入
A9: 3.农业土地开发资金收入
A10: 4.国有土地使用权出让收入
A11: 5.大中型水库库区基金收入
A12: 6.彩票公益金收入
A13: 7.城市基础设施配套费收入
A14: 8.小型水库移民扶助基金收入
A15: 9.国家重大水利工程建设基金收入
A16: 10.污水处理费收入
A17: 11.彩票发行机构和彩票销售机构的业务费用
A18: 12.其他政府性基金收入
A19: （二）专项债务对应项目专项收入
A20: 收入小计
A21: 二、债务收入 | D21: =IF(C21<>0,ROUND(B21/C21*100,1)," ") -> 
A22: 三、转移性收入 | B22: 429,919 | C22: 298,297 | D22: 144.1
A23: 上级补助收入 | B23: 256,485 | C23: 269,792 | D23: 95.1
A24: 下级上解收入
A25: 上年结余收入 | B25: 107,550 | C25: 21,756 | D25: 494.3
A26: 调入资金 | B26: 48,870
A27: 债务转贷收入 | B27: 17,014 | C27: 6,749 | D27: 252.1
A28: 收入合计 | B28: =SUM(B23:B27) -> 429,919 | C28: 298,297 | D28: 144.1

Sheet 附表1-12
A1: 附表1-12
A2: 2025年度政府性基金预算支出预算表
D3: 单位：万元
A4: 项目 | B4: 当年预算数 | C4: 上年预算数 | D4: 当年预算数为上年预算数的％
A5: 一、科学技术支出 | D5: =IF(C5<>0,ROUND(B5/C5*100,1)," ") -> 
A6: 二、文化旅游体育与传媒支出
A7: 三、节能环保支出
A8: 四、城乡社区支出 | B8: 178,242 | C8: 157,474 | D8: =IF(C8<>0,ROUND(B8/C8*100,1)," ") -> 113.2
A9: 五、农林水支出
A10: 六、交通运输支出
A11: 七、资源勘探工业信息等支出
A12: 八、金融支出
A13: 九、其他支出
A14: 十、债务付息支出 | B14: 20,925 | C14: 16,220 | D14: 129
A15: 十一、债务发行费用支出 | B15: 16 | C15: 45 | D15: 35.6
A16: 十二、抗疫特别国债安排的支出
A17: 支出小计 | B17: =SUM(B5:B16) -> 199,183 | C17: 173,739 | D17: 114.6
A18: 债务还本支出 | B18: 19,076 | C18: 15,749 | D18: 121.1
A19: 转移性支出 | B19: =B21+B22+B23 -> 211,660 | C19: 108,809 | D19: 194.5
A20: 补助下级支出
A21: 上解上级支出 | B21: 819
A22: 调出资金 | B22: 103,291 | C22: 87,053 | D22: 118.7
A23: 年终结余 | B23: 107,550
A24: 债务转贷支出 | C24: 21756 | D24: 0
A25: 支出合计 | B25: =B17+B19+B18 -> 429,919 | C25: 298,297 | D25: 144.1

Sheet 附表1-13
A1: 附表1-13
A2: 2025年度本级政府性基金预算收入预算表
D3: 单位：万元
A4: 项目 | B4: 当年预算数 | C4: 上年预算数 | D4: 当年预算数为上年预算数的％
A5: 一、非税收入
A6: （一）政府性基金收入
A7: 1.国家电影事业发展专项资金收入
A8: 2.国有土地收益基金收入
A9: 3.农业土地开发资金收入
A10: 4.国有土地使用权出让收入
A11: 5.大中型水库库区基金收入
A12: 6.彩票公益金收入
A13: 7.城市基础设施配套费收入
A14: 8.小型水库移民扶助基金收入
A15: 9.国家重大水利工程建设基金收入
A16: 10.污水处理费收入
A17: 11.彩票发行机构和彩票销售机构的业务费用
A18: 12.其他政府性基金收入
A19: （二）专项债务对应项目专项收入
A20: 收入小计
A21: 二、债务收入 | D21: =IF(C21<>0,ROUND(B21/C21*100,1)," ") -> 
A22: 三、转移性收入 | B22: 429,919 | C22: 298,297 | D22: 144.1
A23: 上级补助收入 | B23: 256,485 | C23: 269,792 | D23: 95.1
A24: 下级上解收入
A25: 上年结余收入 | B25: 107,550 | C25: 21,756 | D25: 494.3
A26: 调入资金 | B26: 48,870
A27: 债务转贷收入 | B27: 17,014 | C27: 6,749 | D27: 252.1
A28: 收入合计 | B28: =SUM(B23:B27) -> 429,919 | C28: 298,297 | D28: 144.1

Sheet 附表1-14
A1: 附表1-14
A2: 2025年度本级政府性基金预算支出预算表
D3: 单位：万元
A4: 项目 | B4: 当年预算数 | C4: 上年预算数 | D4: 当年预算数为上年预算数的％
A5: 一、城乡社区支出 | B5: =SUM(B6,B10) -> 178,242 | C5: 157,474 | D5: =IF(C5<>0,ROUND(B5/C5*100,1)," ") -> 113.2
A6: 国有土地使用权出让收入及对应专项债务收入安排的支出 | B6: =SUM(B7:B9) -> 178,201 | C6: 157,474 | D6: 113.2
A7: 征地和征迁补偿支出 | B7: =105378+8533+46+6188+36771+20000+200-1461 -> 175,655 | C7: 157,372 | D7: 111.6
A8: 农业农村生态环境支出 | B8: 46 | C8: 102 | D8: 45.1
A9: 其他国有土地使用权出让收入安排的支出 | B9: 2,500
A10: 城市基础设施配套费安排的支出 | B10: =SUM(B11) -> 41
A11: 其他城市基础设施配套费安排的支出 | B11: 41
A12: 二、债务付息支出 | B12: =SUM(B13) -> 20,925 | C12: 16,220 | D12: 129
A13: 地方政府专项债务付息支出 | B13: =SUM(B16:B18) -> 20,925 | C13: 16,220 | D13: 129
A14: 国有土地使用权出让金债务付息支出 | C14: 1,443
A15: 土地储备专项债券付息支出 | C15: 296
A16: 棚户区改造专项债券付息支出 | B16: 137 | C16: 218 | D16: =IF(C16<>0,ROUND(B16/C16*100,1)," ") -> 62.8
A17: 其他地方自行试点项目收益专项债券付息支出 | B17: 18,126 | C17: 14,263 | D17: 127.1
A18: 其他政府性基金债务付息支出 | B18: 2,662
A19: 三、债务发行费用支出 | B19: =SUM(B20) -> 16 | C19: 45 | D19: 35.6
A20: 地方政府专项债务发行费用支出 | B20: =SUM(B21) -> 16 | C20: 45 | D20: 35.6
A21: 其他地方自行试点项目收益专项债券发行费用支出 | B21: 16 | C21: 45 | D21: 35.6
A22: 支出小计 | B22: 199,183 | C22: =C5+C12+C19 -> 173,739 | D22: =IF(C22<>0,ROUND(B22/C22*100,1)," ") -> 114.6
A23: 债务还本支出 | B23: 19,076 | C23: 15,749 | D23: 121.1
A24: 转移性支出 | B24: =B26+B27+B28 -> 211,660 | C24: 108,809 | D24: 194.5
A25: 补助下级支出
A26: 上解上级支出 | B26: 819
A27: 调出资金 | B27: 103,291 | C27: 87,053 | D27: 118.7
A28: 年终结余 | B28: 107,550
A29: 债务转贷支出 | C29: 21,756 | D29: 0
A30: 支出合计 | B30: =B22+B23+B24 -> 429,919 | C30: 298,297 | D30: 144.1
A32: 备注：按照财政部有关规定，报表中涉及本级支出的，应当公开到功能分类项级科目。

Sheet 附表1-15
A1: 附表1-15
A2: 2025年度政府性基金预算转移支付预算表
L3: 单位：万元
A4: 地区 | B4: 小计 | C4: 抗疫特别国债转移支付支出 | D4: 科学技术支出 | E4: 文化旅游体育与传媒支出 | F4: 社会保障和就业支出 | G4: 节能环保支出 | H4: 城乡社区支出 | I4: 农林水支出 | J4: 交通运输支出 | K4: 资源勘探工业信息等支出 | L4: 其他支出
A5: ××地区
A6: ××地区
A7: ××地区
A8: ××地区
A9: ××地区
A10: ××地区
A11: ××地区
A12: ××地区
A13: ××地区
A14: ××地区
A15: 未落实到地区数
A16: 合计
A18: 本区所辖乡镇作为一级预算部门管理，未单独编制政府预算，因此无政府性基金预算转移支付预算数据。

Sheet 附表1-16
A1: 附表1-16
A2: 2025年度国有资本经营预算收入预算表
D3: 单位：万元
A4: 项目 | B4: 当年预算数 | C4: 上年预算数 | D4: 当年预算数为上年预算数的％
A5: 一、利润收入 | B5: 4,095 | C5: 7,000 | D5: =IF(C5<>0,ROUND(B5/C5*100,1)," ") -> 58.5
A6: 二、股利、股息收入 | D6: =IF(C6<>0,ROUND(B6/C6*100,1)," ") -> 
A7: 三、产权转让收入
A8: 四、清算收入
A9: 五、其他国有资本经营预算收入
A10: 收入小计 | B10: 4,095 | C10: 7,000 | D10: 58.5
A11: 国有资本经营预算转移支付收入
A12: 上解收入
A13: 上年结余收入
A14: 收入合计 | B14: 4,095 | C14: 7,000 | D14: 58.5

Sheet 附表1-17
A1: 附表1-17
A2: 2025年度国有资本经营预算支出预算表
D3: 单位：万元
A4: 项目 | B4: 当年预算数 | C4: 上年预算数 | D4: 当年预算数为上年预算数(的％
A5: 一、补充全国社会保障基金 | D5: =IF(C5<>0,ROUND(B5/C5*100,1)," ") -> 
A6: 二、解决历史遗留问题及改革成本支出 | D6: =IF(C6<>0,ROUND(B6/C6*100,1)," ") -> 
A7: 三、国有企业资本金注入 | B7: 50 | C7: 6,178 | D7: 0.8
A8: 四、国有企业政策性补贴 | C8: 822 | D8: 0
A9: 五、其他国有资本经营预算支出 | B9: 1,182
A10: 支出小计 | B10: 1,232 | C10: 7,000 | D10: 17.6
A11: 转移支付支出
A12: 上解支出
A13: 调出资金 | B13: 2,863
A14: 年终结余
A15: 支出合计 | B15: 4,095 | C15: 7,000 | D15: 58.5

Sheet 附表1-18
A1: 附表1-18
A2: 2025年度本级国有资本经营预算收入预算表
D3: 单位：万元
A4: 项目 | B4: 当年预算数 | C4: 上年预算数 | D4: 当年预算数为上年预算数的％
A5: 一、利润收入 | B5: 4,095 | C5: 7,000 | D5: =IF(C5<>0,ROUND(B5/C5*100,1)," ") -> 58.5
A6: 其中：泉州市鲤城区国有资本投资集团有限公司利润收 | B6: 4,095 | C6: 7,000
A7: 二、股利、股息收入 | D7: =IF(C7<>0,ROUND(B7/C7*100,1)," ") -> 
A8: 三、产权转让收入
A9: 四、清算收入
A10: 五、其他国有资本经营预算收入
A11: 收入小计 | B11: 4,095 | C11: 7,000 | D11: 58.5
A12: 国有资本经营预算转移支付收入
A13: 上解收入
A14: 上年结余收入
A15: 收入合计 | B15: 4,095 | C15: 7,000 | D15: 58.5

Sheet 附表1-19
A1: 附表1-19
A2: 2025年度本级国有资本经营预算支出预算表
D3: 单位：万元
A4: 项目 | B4: 当年预算数 | C4: 上年预算数 | D4: 当年预算数为上年预算数的％
A5: 一、国有资本经营预算支出 | B5: =SUM(B6:B9) -> 1,232 | C5: =SUM(C6:C9) -> 7,000 | D5: =IF(C5<>0,ROUND(B5/C5*100,1)," ") -> 17.6
A6: 1.解决历史遗留问题及改革成本支出 | D6: =IF(C6<>0,ROUND(B6/C6*100,1)," ") -> 
A7: 2.国有企业资本金注入 | B7: 50 | C7: 6,178 | D7: =IF(C7<>0,ROUND(B7/C7*100,1)," ") -> 0.8
A8: 3.国有企业政策性补贴 | C8: 822
A9: 4.其他国有资本经营预算支出 | B9: 1,182 | D9: =IF(C9<>0,ROUND(B9/C9*100,1)," ") -> 
A10: 支出小计 | B10: 1,232 | C10: =C5 -> 7,000 | D10: 17.6
A11: 转移支付支出
A12: 上解支出
A13: 调出资金 | B13: 2,863
A14: 年终结余
A15: 支出合计 | B15: 4,095 | C15: 7,000 | D15: 58.5
A17: 备注：按照财政部有关规定，报表中涉及本级支出的，应当公开到功能分类项级科目。

Sheet 附表1-20
A1: 附表1-20
A2: 2025年度国有资本经营预算转移支付预算表
E3: 单位：万元
A4: 地区 | B4: 小计 | C4: ××项目 | D4: ××项目 | E4: ……
A5: ××地区
A6: ××地区
A7: ××地区
A8: ××地区
A9: ××地区
A10: ××地区
A11: ××地区
A12: ××地区
A13: ××地区
A14: ××地区
A15: 未落实到地区数
A16: 合计
A18: 本区所辖乡镇作为一级预算部门管理，未单独编制政府预算，因此无国有资本经营预算转移支付预算数据。

Sheet 附表1-21
A1: 附表1-21
A2: 2025年度社会保险基金预算收入预算表
D3: 单位：万元
A4: 项目 | B4: 当年预算数 | C4: 上年预算数 | D4: 当年预算数为上年预算数的％
A5: 一、企业职工基本养老保险基金收入 | D5: =IF(C5<>0,ROUND(B5/C5*100,1)," ") -> 
A6: 二、失业保险基金收入 | D6: =IF(C6<>0,ROUND(B6/C6*100,1)," ") -> 
A7: 三、职工基本医疗保险基金收入
A8: 四、工伤保险基金收入
A9: 五、城乡居民基本养老保险基金收入 | B9: 7,193 | C9: 6,869 | D9: 104.7
A10: 六、机关事业单位基本养老保险基金收入 | B10: 23,955 | C10: 22,542 | D10: 106.3
A11: 七、城乡居民基本医疗保险基金收入
A12: 合计 | B12: 31,148 | C12: 29,411 | D12: 105.9

Sheet 附表1-22
A1: 附表1-22
A2: 2025年度社会保险基金预算支出预算表
D3: 单位：万元
A4: 项目 | B4: 当年预算数 | C4: 上年执行数 | D4: 当年预算数为上年执行数的％
A5: 一、企业职工基本养老保险基金支出
A6: 二、失业保险基金支出
A7: 三、职工基本医疗保险基金支出 | D7: =IF(C7<>0,ROUND(B7/C7*100,1)," ") -> 
A8: 四、工伤保险基金支出
A9: 五、城乡居民基本养老保险基金支出 | B9: 6,309 | C9: 5,729 | D9: 110.1
A10: 六、机关事业单位基本养老保险基金支出 | B10: 23,882 | C10: 22,290 | D10: 107.1
A11: 七、城乡居民基本医疗保险基金支出
A12: 合计 | B12: 30,191 | C12: 28,019 | D12: 107.8

Sheet 附表1-23
A1: 附表1-23
A2: 2025年度本级社会保险基金预算收入预算表
D3: 单位：万元
A4: 项目 | B4: 当年预算数 | C4: 上年执行数 | D4: 当年预算数为上年执行数的％
A5: 一、企业职工基本养老保险基金收入 | D5: =IF(C5<>0,ROUND(B5/C5*100,1)," ") -> 
A6: 其中：基本养老保险费收入 | D6: =IF(C6<>0,ROUND(B6/C6*100,1)," ") -> 
A7: 财政补贴收入
A8: 利息收入
A9: 委托投资收益
A10: 其他收入
A11: 二、失业保险基金收入
A12: 其中：失业保险费收入
A13: 财政补贴收入
A14: 利息收入
A15: 其他收入
A16: 三、职工基本医疗保险基金收入 | B16: 814,414 | C16: 699,602 | D16: 116.4
A17: 其中：基本医疗保险费收入 | B17: 745,784 | C17: 684,986 | D17: 108.9
A18: 财政补贴收入
A19: 利息收入 | B19: 65,700 | C19: 9,195 | D19: 714.5
A20: 其他收入 | B20: 2,930 | C20: 5,421 | D20: 54
A21: 四、工伤保险基金收入
A22: 其中：工伤保险费收入
A23: 财政补贴收入
A24: 利息收入
A25: 职业伤害保障费收入
A26: 其他收入
A27: 五、城乡居民基本养老保险基金收入 | B27: 7,193 | C27: 6,869 | D27: 104.7
A28: 其中：缴费收入 | B28: 840 | C28: 896 | D28: 93.8
A29: 财政补贴收入 | B29: 6,182 | C29: 5,443 | D29: 113.6
A30: 利息收入 | B30: 11 | C30: 374 | D30: 2.9
A31: 委托投资收益
A32: 集体补助收入
A33: 其他收入 | B33: 160
A34: 六、机关事业单位基本养老保险基金收入 | B34: 23,955 | C34: 22,542 | D34: 106.3
A35: 其中：基本养老保险费收入 | B35: 13,447 | C35: 13,234 | D35: 101.6
A36: 财政补贴收入 | B36: 10,500 | C36: 9,300 | D36: 112.9
A37: 利息收入 | B37: 8
A38: 其他收入
A39: 七、城乡居民基本医疗保险基金收入
A40: 其中：基本医疗保险费收入
A41: 财政补贴收入
A42: 利息收入
A43: 其他收入
A44: 合计 | B44: =B27+B34 -> 31,148 | C44: =C27+C34 -> 29,411 | D44: 105.9

Sheet 附表1-24
A1: 附表1-24
A2: 2025年度本级社会保险基金预算支出预算表
D3: 单位：万元
A4: 项目 | B4: 当年预算数 | C4: 上年执行数 | D4: 当年预算数为上年执行数的％
A5: 一、企业职工基本养老保险基金支出 | D5: =IF(C5<>0,ROUND(B5/C5*100,1)," ") -> 
A6: 其中：基本养老金支出 | D6: =IF(C6<>0,ROUND(B6/C6*100,1)," ") -> 
A7: 医疗补助金支出
A8: 丧葬补助金和抚恤金支出
A9: 病残津贴支出
A10: 其他支出
A11: 二、失业保险基金支出
A12: 其中：失业保险金支出
A13: 基本医疗保险费支出
A14: 丧葬补助金和抚恤金支出
A15: 职业培训和职业介绍补贴支出
A16: 技能提升补贴支出
A17: 稳定岗位补贴支出
A18: 其他费用支出
A19: 其他支出
A20: 三、职工基本医疗保险基金支出
A21: 其中：职工基本医疗保险统筹基金支出
A22: 职工基本医疗保险个人账户基金支出
A23: 其他支出
A24: 四、工伤保险基金支出
A25: 其中：工伤保险待遇支出
A26: 劳动能力鉴定支出
A27: 工伤预防费用支出
A28: 职业伤害保障支出
A29: 其他支出
A30: 五、城乡居民基本养老保险基金支出 | B30: 6,309 | C30: 5,729 | D30: 110.1
A31: 其中：基础养老金支出 | B31: 5,408 | C31: 5,729 | D31: 94.4
A32: 个人账户养老金支出 | B32: 634
A33: 丧葬补助金支出 | B33: 266
A34: 其他支出 | B34: 1
A35: 六、机关事业单位基本养老保险基金支出 | B35: 23,882 | C35: 22,290 | D35: 107.1
A36: 其中：基本养老金支出 | B36: 23,874 | C36: 22,277 | D36: 107.2
A37: 其他支出 | B37: 8 | C37: 13 | D37: 61.5
A38: 七、城乡居民基本医疗保险基金支出
A39: 其中：城乡居民基本医疗保险医疗待遇支出
A40: 城乡居民大病保险支出
A41: 其他支出
A42: 合计 | B42: 30,191 | C42: 28,019 | D42: 107.8
A44: 备注：按照财政部有关规定，报表中涉及本级支出的，应当公开到功能分类项级科目。

Sheet 附表1-25
A1: 附表1-25
A2: 2024年度地方政府债务限额及余额情况表
G3: 单位：万元
A4: 地区 | B4: 2024年债务限额 | E4: 2024年债务余额预计执行数
B5: 小计 | C5: 一般债务 | D5: 专项债务 | E5: 小计 | F5: 一般债务 | G5: 专项债务
A6: 鲤城区合计
A7: 一、鲤城区本级 | B7: =SUM(C7:D7) -> 934,226.00 | C7: 243,896.00 | D7: 690,330.00 | E7: 912,471.48 | F7: 231,498.48 | G7: 680,973.00

Sheet 附表1-26
A1: 附表1-26
A2: 2024年度地方政府一般债务限额及余额情况表
C3: 单位：万元
A4: 项目 | B4: 本地区金额 | C4: 本级金额
A5: 一、2023年末地方政府一般债务余额 | B5: 225,911.51 | C5: 225,911.51
A6: 二、2024年地方政府一般债券发行额 | B6: 5,598.00 | C6: 5,598.00
A7: 三、2024年地方政府一般债券还本额 | B7: 0.00 | C7: 0.00
A8: 四、2024年末地方政府一般债务余额预计执行数 | B8: 231,498.48 | C8: 231,498.48
A9: 五、2024年末地方政府一般债务限额 | B9: 243,896.00 | C9: 243,896.00
A10: 六、2025年提前下达新增一般债务限额 | B10: 0.00 | C10: 0.00

Sheet 附表1-27
A1: 附表1-27
A2: 2024年度地方政府专项债务限额及余额情况表
C3: 单位：万元
A4: 项目 | B4: 本地区金额 | C4: 本级金额
A5: 一、2023年末地方政府专项债务余额 | B5: 453,107.00 | C5: 453,107.00
A6: 二、2024年地方政府专项债券发行额 | B6: 236,866.00 | C6: 236,866.00
A7: 三、2024年地方政府专项债券还本额 | B7: 9,000.00 | C7: 9,000.00
A8: 四、2024年末地方政府专项债务余额预计执行数 | B8: 680,973.00 | C8: 680,973.00
A9: 五、2024年末地方政府专项债务限额 | B9: 690,330.00 | C9: 690,330.00
A10: 六、2025年提前下达新增专项债务限额 | B10: 0.00 | C10: 0.00

Sheet 附表1-28
A1: 附表1-28
A2: 2024年度地方政府债券发行及还本付息情况表
C3: 单位：万元
A4: 项目 | B4: 本地区金额 | C4: 本级金额
A5: 一、2024年发行预计执行数 | B5: =SUM(B6,B8) -> 284438.00 | C5: 284438.00
A6: 1.一般债券 | B6: 40823.00 | C6: 40823.00
A7: 其中：再融资债券 | B7: 37801.00 | C7: 37801.00
A8: 2.专项债券 | B8: 243615.00 | C8: 243615.00
A9: 其中：再融资债券 | B9: 42986.00 | C9: 42986.00
A10: 二、2024年还本支出预计执行数 | B10: 9000.00 | C10: 9000.00
A11: 1.一般债券 | B11: 0.00 | C11: 0.00
A12: 2.专项债券 | B12: 9000.00 | C12: 9000.00
A13: 三、2024年付息预计执行数 | B13: =SUM(B14:B15) -> 23698.05 | C13: 23698.05
A14: 1.一般债券 | B14: 7896.28 | C14: 7896.28
A15: 2.专项债券 | B15: 15801.77 | C15: 15801.77
A16: 四、2025年还本预算数 | B16: =SUM(B17,B20) -> 37811.00 | C16: 37811.00
A17: 1.一般债券 | B17: 20796.00 | C17: 20796.00
A18: 其中：再融资债券 | B18: 2140.00 | C18: 2140.00
A19: 财政预算安排 | B19: =B17-B18 -> 18656.00 | C19: 18656.00
A20: 2.专项债券 | B20: 17015.00 | C20: 17015.00
A21: 其中：再融资债券 | B21: 2061.00 | C21: 2061.00
A22: 财政预算安排 | B22: =B20-B21 -> 14954.00 | C22: 14954.00
A23: 五、2025年付息预算数 | B23: =SUM(B24:B25) -> 28208.63 | C23: 28208.63
A24: 1.一般债券 | B24: 7283.63 | C24: 7283.63
A25: 2.专项债券 | B25: 20925.00 | C25: 20925.00
